fUSD/lending_fUSD_20240317
["ID","MTS","AMOUNT","RATE_DAILY","PERIOD"]
[319296624,1710643844301,-500.0,0.00015495,2]
[319296625,1710643844311,-500.0,0.00015495,2]
[319296626,1710643844320,-500.0,0.00015495,2]
[319296627,1710643844330,-589.66,0.00015495,2]
[319296628,1710643844339,-500.0,0.00015495,2]
[319296629,1710643844348,-500.0,0.00015495,2]
[319296630,1710643844358,-262.26,0.00015495,2]
[319296631,1710643844367,-500.0,0.00015495,2]
[319296632,1710643844376,-500.0,0.00015495,2]
[319296633,1710643844386,-333.76,0.00015495,2]
[319296634,1710643844396,-500.0,0.00015495,2]
[319296635,1710643844405,-410.06002848,0.00015495,2]
[319296636,1710643844414,-500.0,0.00015495,2]
[319296637,1710643844423,-500.0,0.00015495,2]
[319296638,1710643844433,-500.0,0.00015495,2]
[319296639,1710643844442,-161.41,0.00015495,2]
[319296640,1710643844452,-500.0,0.00015495,2]
[319296641,1710643844462,-500.0,0.00015495,2]
[319296642,1710643844471,-500.0,0.00015495,2]
[319296643,1710643844481,-500.0,0.00015495,2]
[319296644,1710643844490,-500.0,0.00015495,2]
[319296645,1710643844500,-500.0,0.00015495,2]
[319296646,1710643844510,-346.41,0.00015495,2]
[319296647,1710643844519,-500.0,0.00015495,2]
[319296648,1710643844529,-500.0,0.00015495,2]
[319296649,1710643844538,-500.0,0.00015495,2]
[319296650,1710643844548,-482.82,0.00015495,2]
[319296651,1710643844557,-500.0,0.00015495,2]
[319296652,1710643844567,-500.0,0.00015495,2]
[319296653,1710643844576,-500.0,0.00015495,2]
[319296654,1710643844585,-500.0,0.00015495,2]
[319296655,1710643844594,-500.0,0.00015495,2]
[319296656,1710643844604,-500.0,0.00015495,2]
[319296657,1710643844613,-500.0,0.00015495,2]
[319296658,1710643844623,-500.0,0.00015495,2]
[319296659,1710643844633,-500.0,0.00015495,2]
[319296660,1710643844642,-331.94,0.00015495,2]
[319296661,1710643844652,-500.0,0.00015495,2]
[319296662,1710643844661,-500.0,0.00015495,2]
[319296663,1710643844671,-500.0,0.00015495,2]
[319296664,1710643844680,-500.0,0.00015495,2]
[319296665,1710643844690,-500.0,0.00015495,2]
[319296666,1710643844699,-443.56157148,0.00015495,2]
[319296667,1710643844709,-500.0,0.00015495,2]
[319296668,1710643844722,-383.15,0.00015495,2]
[319296669,1710643844731,-500.0,0.00015495,2]
[319296670,1710643844741,-266.37,0.00015495,2]
[319296671,1710643844750,-500.0,0.00015495,2]
[319296672,1710643844759,-500.0,0.00015495,2]
[319296673,1710643844769,-500.0,0.00015495,2]
[319296674,1710643844778,-500.0,0.00015495,2]
[319296675,1710643844788,-576.25969902,0.00015495,2]
[319296676,1710643844797,-500.0,0.00015495,2]
[319296677,1710643844806,-500.0,0.00015495,2]
[319296678,1710643844816,-500.0,0.00015495,2]
[319296679,1710643844825,-500.0,0.00015495,2]
[319296680,1710643844834,-500.0,0.00015495,2]
[319296681,1710643844843,-500.0,0.00015495,2]
[319296682,1710643844852,-500.0,0.00015495,2]
[319296683,1710643844861,-500.0,0.00015495,2]
[319296684,1710643844871,-500.0,0.00015495,2]
[319296685,1710643844880,-500.0,0.00015495,2]
[319296686,1710643844889,-500.0,0.00015495,2]
[319296687,1710643844899,-431.36,0.00015495,2]
[319296688,1710643844908,-1175.92,0.00015495,2]
[319296689,1710643844917,-500.0,0.00015495,2]
[319296690,1710643844926,-1175.92,0.00015495,2]
[319296691,1710643844935,-500.0,0.00015495,2]
[319296692,1710643844945,-500.0,0.00015495,2]
[319296693,1710643844954,-1175.92,0.00015495,2]
[319296694,1710643844967,-500.0,0.00015495,2]
[319296695,1710643844976,-1175.92,0.00015495,2]
[319296696,1710643844985,-500.0,0.00015495,2]
[319296697,1710643844995,-500.0,0.00015495,2]
[319296698,1710643845004,-500.0,0.00015495,2]
[319296699,1710643845014,-500.0,0.00015495,2]
[319296700,1710643845027,-500.0,0.00015495,2]
[319296701,1710643845036,-500.0,0.00015495,2]
[319296702,1710643845045,-500.0,0.00015495,2]
[319296703,1710643845106,-500.0,0.00015495,2]
[319296704,1710643845115,-500.0,0.00015495,2]
[319296705,1710643845124,-500.0,0.00015495,2]
[319296706,1710643845134,-500.0,0.00015495,2]
[319296707,1710643845143,-500.0,0.00015495,2]
[319296708,1710643845152,-500.0,0.00015495,2]
[319296709,1710643845160,-283.91,0.00015495,2]
[319296710,1710643845169,-500.0,0.00015495,2]
[319296711,1710643845178,-500.0,0.00015495,2]
[319296712,1710643845189,-500.0,0.00015495,2]
[319296713,1710643845198,-500.0,0.00015495,2]
[319296714,1710643845208,-245.73,0.00015495,2]
[319296715,1710643845222,-250.74,0.00015495,2]
[319296716,1710643845231,-327.6862111,0.00015495,2]
[319296717,1710643845240,-500.0,0.00015495,2]
[319296718,1710643845250,-500.0,0.00015495,2]
[319296719,1710643845259,-500.0,0.00015495,2]
[319296720,1710643845270,-417.09,0.00015495,2]
[319296721,1710643845278,-500.0,0.00015495,2]
[319296722,1710643845288,-237.99,0.00015495,2]
[319296723,1710643845298,-529.99782718,0.00015495,2]
[319296724,1710643845308,-523.42593883,0.00015495,2]
[319296725,1710643845318,-500.0,0.00015495,2]
[319296726,1710643845327,-584.97,0.00015495,2]
[319296727,1710643845335,-575.82411255,0.00015495,2]
[319296728,1710643845344,-500.0,0.00015495,2]
[319296729,1710643845353,-500.0,0.00015495,2]
[319296730,1710643845363,-530.19,0.00015495,2]
[319296731,1710643845373,-500.0,0.00015495,2]
[319296732,1710643845383,-220.38,0.00015495,2]
[319296733,1710643845395,-500.0,0.00015495,2]
[319296734,1710643845405,-500.0,0.00015495,2]
[319296735,1710643845415,-500.0,0.00015495,2]
[319296736,1710643845424,-500.0,0.00015495,2]
[319296737,1710643845435,-500.0,0.00015495,2]
[319296738,1710643845445,-500.0,0.00015495,2]
[319296739,1710643845456,-341.84,0.00015495,2]
[319296740,1710643845467,-500.0,0.00015495,2]
[319296741,1710643845477,-500.0,0.00015495,2]
[319296742,1710643845486,-251.48,0.00015495,2]
[319296743,1710643845495,-500.0,0.00015495,2]
[319296744,1710643845506,-502.18,0.00015495,2]
[319296745,1710643845515,-500.0,0.00015495,2]
[319296746,1710643845525,-500.0,0.00015495,2]
[319296747,1710643845535,-500.0,0.00015495,2]
[319296748,1710643845545,-500.0,0.00015495,2]
[319296749,1710643845555,-500.0,0.00015495,2]
[319296750,1710643845565,-420.97,0.00015495,2]
[319296751,1710643845575,-500.0,0.00015495,2]
[319296752,1710643845584,-500.0,0.00015495,2]
[319296753,1710643845594,-500.0,0.00015495,2]
[319296754,1710643845603,-500.0,0.00015495,2]
[319296755,1710643845613,-500.0,0.00015495,2]
[319296756,1710643845622,-854.16,0.00015495,2]
[319296757,1710643845631,-854.16,0.00015495,2]
[319296758,1710643845642,-854.16,0.00015495,2]
[319296759,1710643845652,-854.16,0.00015495,2]
[319296760,1710643845661,-500.0,0.00015495,2]
[319296761,1710643845671,-500.0,0.00015495,2]
[319296762,1710643845680,-500.0,0.00015495,2]
[319296763,1710643845690,-500.0,0.00015495,2]
[319296764,1710643845699,-416.13,0.00015495,2]
[319296765,1710643845709,-500.0,0.00015495,2]
[319296766,1710643845720,-500.0,0.00015495,2]
[319296767,1710643845729,-193.28,0.00015495,2]
[319296768,1710643845738,-336.51550815,0.00015495,2]
[319296769,1710643845748,-500.0,0.00015495,2]
[319296770,1710643845758,-590.73,0.00015495,2]
[319296771,1710643845767,-500.0,0.00015495,2]
[319296772,1710643845777,-500.0,0.00015495,2]
[319296773,1710643845786,-500.0,0.00015495,2]
[319296774,1710643845795,-500.0,0.00015495,2]
[319296775,1710643845805,-500.0,0.00015495,2]
[319296776,1710643845814,-500.0,0.00015495,2]
[319296777,1710643845823,-521.07858804,0.00015495,2]
[319296778,1710643845833,-500.0,0.00015495,2]
[319296779,1710643845842,-510.36191396,0.00015495,2]
[319296780,1710643845851,-1244.56,0.00015495,2]
[319296781,1710643845861,-500.0,0.00015495,2]
[319296782,1710643845870,-1244.56,0.00015495,2]
[319296783,1710643845879,-1244.56,0.00015495,2]
[319296784,1710643845888,-1244.56,0.00015495,2]
[319296785,1710643845898,-500.0,0.00015495,2]
[319296786,1710643845907,-501.5693799,0.00015495,2]
[319296787,1710643845916,-530.42,0.00015495,2]
[319296788,1710643845925,-887.36,0.00015495,2]
[319296789,1710643845934,-887.36,0.00015495,2]
[319296790,1710643845942,-887.36,0.00015495,2]
[319296791,1710643845951,-887.36,0.00015495,2]
[319296792,1710643845962,-500.0,0.00015495,2]
[319296793,1710643845970,-500.0,0.00015495,2]
[319296794,1710643845979,-500.0,0.00015495,2]
[319296795,1710643845988,-279.50476207,0.00015495,2]
[319296796,1710643845998,-504.36707017,0.00015495,2]
[319296797,1710643846008,-500.0,0.00015495,2]
[319296798,1710643846018,-500.0,0.00015495,2]
[319296799,1710643846028,-2009.25,0.00015495,2]
[319296800,1710643846037,-2009.25,0.00015495,2]
[319296801,1710643846046,-2009.25,0.00015495,2]
[319296802,1710643846056,-500.0,0.00015495,2]
[319296803,1710643846066,-2009.25,0.00015495,2]
[319296804,1710643846074,-500.0,0.00015495,2]
[319296805,1710643846083,-500.0,0.00015495,2]
[319296806,1710643846094,-500.0,0.00015495,2]
[319296807,1710643846104,-500.0,0.00015495,2]
[319296808,1710643846114,-500.0,0.00015495,2]
[319296810,1710643846123,-16356.3576813,0.00015496,2]
[319296811,1710643846132,-506.75,0.00015496,2]
[319296812,1710643846142,-14965.3356731,0.00015496,2]
[319296813,1710643846151,-159.56,0.00015496,2]
[319296814,1710643846161,-1400.253038,0.00015496,2]
[319296815,1710643846170,-500.0,0.00015496,2]
[319296816,1710643846178,-45083.23911739,0.00015496,2]
[319296819,1710643846399,-101581.32926561,0.00015496,2]
[319296820,1710643846409,-500.0,0.00015496,2]
[319296821,1710643846418,-4811.1036396,0.00015496,2]
[319296822,1710643846427,-500.0,0.00015496,2]
[319296823,1710643846436,-593.505283,0.00015496,2]
[319296824,1710643846445,-34445.7019859,0.00015496,2]
[319296825,1710643846455,-2943.5704369,0.00015496,2]
[319296826,1710643846465,-2345.92490202,0.00015497,2]
[319296827,1710643846475,-528.66852431,0.00015497,2]
[319296828,1710643846484,-500.0,0.00015497,2]
[319296829,1710643846493,-500.0,0.00015497,2]
[319296830,1710643846502,-500.0,0.00015497,2]
[319296831,1710643846511,-500.0,0.00015497,2]
[319296832,1710643846520,-500.0,0.00015497,2]
[319296833,1710643846530,-500.0,0.00015497,2]
[319296834,1710643846539,-500.0,0.00015497,2]
[319296835,1710643846548,-155.44214674,0.00015497,2]
[319296836,1710643846558,-445.75259701,0.00015497,2]
[319296837,1710643846567,-500.0,0.00015497,2]
[319296838,1710643846577,-9733.27894362,0.00015497,2]
[319296839,1710643846586,-500.0,0.00015497,2]
[319296840,1710643846595,-173.28091187,0.00015497,2]
[319296841,1710643846604,-500.0,0.00015497,2]
[319296842,1710643846613,-500.0,0.00015497,2]
[319296843,1710643846623,-257.78,0.00015497,2]
[319296844,1710643846632,-500.0,0.00015497,2]
[319296845,1710643846641,-500.0,0.00015497,2]
[319296846,1710643846650,-506.75,0.00015497,2]
[319296847,1710643846659,-641.39,0.00015497,2]
[319296848,1710643846668,-641.39,0.00015497,2]
[319296849,1710643846677,-500.0,0.00015497,2]
[319296850,1710643846686,-500.0,0.00015497,2]
[319296851,1710643846695,-500.0,0.00015497,2]
[319296852,1710643846704,-500.0,0.00015497,2]
[319296853,1710643846714,-500.0,0.00015497,2]
[319296854,1710643846724,-500.0,0.00015497,2]
[319296855,1710643846733,-500.0,0.00015497,2]
[319296856,1710643846742,-500.0,0.00015497,2]
[319296857,1710643846751,-500.0,0.00015497,2]
[319296858,1710643846761,-173.73,0.00015497,2]
[319296859,1710643846770,-404.21026152,0.00015497,2]
[319296860,1710643846779,-200.0,0.00015497,2]
[319296861,1710643846788,-289.08,0.00015497,2]
[319296862,1710643846797,-394.41925954,0.00015497,2]
[319296863,1710643846806,-166.88888504,0.00015497,2]
[319296864,1710643846816,-794.2643391,0.00015497,2]
[319296865,1710643846825,-500.0,0.00015497,2]
[319296866,1710643846834,-1317.11031731,0.00015497,2]
[319296867,1710643846843,-484.77604832,0.00015497,2]
[319296868,1710643846852,-500.0,0.00015497,2]
[319296869,1710643846862,-500.0,0.00015497,2]
[319296870,1710643846871,-155.69533176,0.00015497,2]
[319296871,1710643846880,-500.0,0.00015497,2]
[319296872,1710643846889,-155.55550652,0.00015497,2]
[319296873,1710643846898,-155.32218103,0.00015497,2]
[319296874,1710643846907,-184.12689899,0.00015497,2]
[319296875,1710643846916,-500.0,0.00015497,2]
[319296876,1710643846925,-500.0,0.00015497,2]
[319296877,1710643846934,-500.0,0.00015497,2]
[319296878,1710643846944,-236.12,0.00015497,2]
[319296879,1710643846953,-500.0,0.00015497,2]
[319296880,1710643846962,-500.0,0.00015497,2]
[319296881,1710643846971,-217.06708636,0.00015497,2]
[319296882,1710643846980,-155.66810936,0.00015497,2]
[319296883,1710643846989,-238.42635152,0.00015497,2]
[319296884,1710643846999,-1634.50320802,0.00015497,2]
[319296885,1710643847011,-527.29473383,0.00015497,7]
[319296886,1710643847020,-500.0,0.00015497,2]
[319296887,1710643847029,-500.0,0.00015497,2]
[319296888,1710643847038,-179.99,0.00015497,2]
[319296889,1710643847050,-230.44693586,0.00015497,2]
[319296890,1710643847059,-2302.21537281,0.00015497,2]
[319296891,1710643847069,-265.53164377,0.00015497,2]
[319296892,1710643847078,-500.0,0.00015497,2]
[319296893,1710643847090,-494.36585656,0.00015497,2]
[319296894,1710643847099,-500.0,0.00015497,2]
[319296895,1710643847109,-195.22,0.00015497,2]
[319296896,1710643847119,-616.42,0.00015497,2]
[319296897,1710643847129,-1061.22011843,0.00015497,2]
[319296898,1710643847139,-500.0,0.00015497,2]
[319296899,1710643847150,-155.14319652,0.00015497,2]
[319296900,1710643847162,-500.0,0.00015497,2]
[319296901,1710643847173,-1931.25816731,0.00015497,2]
[319296902,1710643847183,-204.32,0.00015497,2]
[319296903,1710643847194,-1175.92,0.00015497,2]
[319296904,1710643847203,-1175.92,0.00015497,2]
[319296905,1710643847215,-500.0,0.00015497,2]
[319296906,1710643847226,-500.0,0.00015497,2]
[319296907,1710643847238,-500.0,0.00015497,2]
[319296908,1710643847248,-500.0,0.00015497,2]
[319296909,1710643847258,-6213.51582172,0.00015497,2]
[319296910,1710643847268,-156.51132444,0.00015497,2]
[319296911,1710643847278,-294.75051208,0.00015497,2]
[319296912,1710643847289,-256.28333759,0.00015497,2]
[319296913,1710643847299,-184.72118084,0.00015497,2]
[319296914,1710643847309,-468.34366984,0.00015497,2]
[319296915,1710643847320,-220.3776993,0.00015497,2]
[319296916,1710643847331,-3046.60911697,0.00015497,2]
[319296917,1710643847344,-290.0615947,0.00015497,2]
[319296918,1710643847356,-248.10498703,0.00015497,2]
[319296919,1710643847368,-155.49794433,0.00015497,2]
[319296920,1710643847378,-155.35223061,0.00015497,2]
[319296921,1710643847391,-373.60357031,0.00015497,2]
[319296922,1710643847400,-155.28985837,0.00015497,2]
[319296923,1710643847409,-514.79499133,0.00015497,2]
[319296924,1710643847418,-199.1190511,0.00015497,2]
[319296925,1710643847427,-487.12593273,0.00015497,2]
[319296926,1710643847440,-155.44511244,0.00015497,2]
[319296927,1710643847452,-222.87912994,0.00015497,5]
[319296928,1710643847465,-174.60454533,0.00015497,2]
[319296929,1710643847476,-346.57934051,0.00015497,2]
[319296930,1710643847485,-633.87474151,0.00015497,2]
[319296931,1710643847497,-155.23516414,0.00015497,2]
[319296932,1710643847506,-500.0,0.00015497,2]
[319296933,1710643847515,-500.0,0.00015497,2]
[319296934,1710643847525,-500.0,0.00015497,2]
[319296935,1710643847535,-500.0,0.00015497,2]
[319296936,1710643847545,-854.16,0.00015497,2]
[319296937,1710643847554,-235.80040189,0.00015497,2]
[319296938,1710643847564,-500.0,0.00015497,2]
[319296939,1710643847574,-500.0,0.00015497,2]
[319296940,1710643847584,-1244.56,0.00015497,2]
[319296941,1710643847594,-1244.56,0.00015497,2]
[319296942,1710643847604,-887.36,0.00015497,2]
[319296943,1710643847613,-887.36,0.00015497,2]
[319296944,1710643847623,-2009.25,0.00015497,2]
[319296945,1710643847634,-220000.0,0.00015498,2]
[319296946,1710643847643,-5000.0,0.00015498,2]
[319296947,1710643847652,-500.0,0.00015498,2]
[319296948,1710643847662,-500.0,0.00015498,2]
[319296949,1710643847672,-500.0,0.00015498,2]
[319296950,1710643847681,-500.0,0.00015498,2]
[319296951,1710643847691,-500.0,0.00015498,2]
[319296952,1710643847700,-500.0,0.00015498,2]
[319296953,1710643847709,-500.0,0.00015498,2]
[319296954,1710643847722,-500.0,0.00015498,2]
[319296955,1710643847731,-500.0,0.00015498,2]
[319296956,1710643847741,-503.73295409,0.00015498,2]
[319296957,1710643847751,-500.0,0.00015498,2]
[319296958,1710643847762,-258.45,0.00015498,2]
[319296959,1710643847772,-500.0,0.00015498,2]
[319296960,1710643847782,-500.0,0.00015498,2]
[319296961,1710643847791,-500.0,0.00015498,2]
[319296962,1710643847801,-500.0,0.00015498,2]
[319296963,1710643847810,-500.0,0.00015498,2]
[319296964,1710643847819,-500.0,0.00015498,2]
[319296965,1710643847829,-342.26521055,0.00015498,2]
[319296966,1710643847839,-500.0,0.00015498,2]
[319296967,1710643847849,-500.0,0.00015498,2]
[319296968,1710643847860,-500.0,0.00015498,2]
[319296969,1710643847870,-500.0,0.00015498,2]
[319296970,1710643847880,-500.0,0.00015498,2]
[319296971,1710643847891,-644.99313095,0.00015498,2]
[319296972,1710643847902,-500.0,0.00015498,2]
[319296973,1710643847912,-500.0,0.00015498,2]
[319296974,1710643847923,-500.0,0.00015498,2]
[319296975,1710643847933,-500.0,0.00015498,2]
[319296976,1710643847943,-500.0,0.00015498,2]
[319296977,1710643847953,-500.0,0.00015498,2]
[319296978,1710643847963,-424.24,0.00015498,2]
[319296979,1710643847978,-500.0,0.00015498,2]
[319296980,1710643847991,-500.0,0.00015498,2]
[319296981,1710643848002,-248.4216347,0.00015498,2]
[319296982,1710643848013,-500.0,0.00015498,2]
[319296983,1710643848023,-500.0,0.00015498,2]
[319296984,1710643848034,-500.0,0.00015498,2]
[319296985,1710643848044,-500.0,0.00015498,2]
[319296986,1710643848054,-332.0,0.00015498,2]
[319296987,1710643848066,-599.78007431,0.00015498,2]
[319296988,1710643848076,-500.0,0.00015498,2]
[319296989,1710643848087,-500.0,0.00015498,2]
[319296990,1710643848099,-500.0,0.00015498,2]
[319296991,1710643848109,-500.0,0.00015498,2]
[319296992,1710643848120,-500.0,0.00015498,2]
[319296993,1710643848132,-500.0,0.00015498,2]
[319296994,1710643848142,-500.0,0.00015498,2]
[319296995,1710643848152,-500.0,0.00015498,2]
[319296996,1710643848162,-500.0,0.00015498,2]
[319296997,1710643848172,-500.0,0.00015498,2]
[319296998,1710643848183,-500.0,0.00015498,2]
[319296999,1710643848192,-500.0,0.00015498,2]
[319297000,1710643848203,-500.0,0.00015498,2]
[319297001,1710643848217,-500.0,0.00015498,2]
[319297002,1710643848227,-500.0,0.00015498,2]
[319297003,1710643848236,-500.0,0.00015498,2]
[319297004,1710643848245,-506.75,0.00015498,2]
[319297005,1710643848255,-506.75,0.00015498,2]
[319297006,1710643848264,-506.75,0.00015498,2]
[319297007,1710643848273,-506.75,0.00015498,2]
[319297008,1710643848283,-506.75,0.00015498,2]
[319297009,1710643848292,-506.75,0.00015498,2]
[319297010,1710643848301,-506.75,0.00015498,2]
[319297011,1710643848310,-506.75,0.00015498,2]
[319297012,1710643848320,-641.39,0.00015498,2]
[319297013,1710643848329,-641.39,0.00015498,2]
[319297014,1710643848338,-641.39,0.00015498,2]
[319297015,1710643848347,-641.39,0.00015498,2]
[319297016,1710643848356,-641.39,0.00015498,2]
[319297017,1710643848365,-641.39,0.00015498,2]
[319297018,1710643848375,-641.39,0.00015498,2]
[319297019,1710643848384,-500.0,0.00015498,2]
[319297020,1710643848393,-500.0,0.00015498,2]
[319297021,1710643848402,-500.0,0.00015498,2]
[319297022,1710643848411,-500.0,0.00015498,2]
[319297023,1710643848420,-500.0,0.00015498,2]
[319297024,1710643848430,-394.30099559,0.00015498,2]
[319297025,1710643848439,-500.0,0.00015498,2]
[319297026,1710643848448,-500.0,0.00015498,2]
[319297027,1710643848458,-500.0,0.00015498,2]
[319297028,1710643848469,-500.0,0.00015498,2]
[319297029,1710643848478,-500.0,0.00015498,2]
[319297030,1710643848487,-500.0,0.00015498,2]
[319297031,1710643848496,-500.0,0.00015498,2]
[319297032,1710643848505,-500.0,0.00015498,2]
[319297033,1710643848514,-500.0,0.00015498,2]
[319297034,1710643848524,-500.0,0.00015498,2]
[319297035,1710643848533,-500.0,0.00015498,2]
[319297036,1710643848543,-500.0,0.00015498,2]
[319297037,1710643848552,-500.0,0.00015498,2]
[319297038,1710643848561,-500.0,0.00015498,2]
[319297039,1710643848570,-500.0,0.00015498,2]
[319297040,1710643848579,-500.0,0.00015498,2]
[319297041,1710643848589,-238.56548138,0.00015498,2]
[319297042,1710643848600,-500.0,0.00015498,2]
[319297043,1710643848609,-500.0,0.00015498,2]
[319297044,1710643848618,-500.0,0.00015498,2]
[319297045,1710643848628,-500.0,0.00015498,2]
[319297046,1710643848637,-500.0,0.00015498,2]
[319297047,1710643848646,-500.0,0.00015498,2]
[319297048,1710643848655,-500.0,0.00015498,2]
[319297049,1710643848665,-500.0,0.00015498,2]
[319297050,1710643848674,-500.0,0.00015498,2]
[319297051,1710643848683,-500.0,0.00015498,2]
[319297052,1710643848692,-500.0,0.00015498,2]
[319297053,1710643848702,-500.0,0.00015498,2]
[319297054,1710643848711,-500.0,0.00015498,2]
[319297055,1710643848723,-375.52,0.00015498,2]
[319297056,1710643848732,-500.0,0.00015498,2]
[319297057,1710643848741,-500.0,0.00015498,2]
[319297058,1710643848751,-500.0,0.00015498,2]
[319297059,1710643848760,-588.06,0.00015498,2]
[319297060,1710643848769,-500.0,0.00015498,2]
[319297061,1710643848778,-500.0,0.00015498,2]
[319297062,1710643848787,-500.0,0.00015498,2]
[319297063,1710643848796,-500.0,0.00015498,2]
[319297064,1710643848805,-500.0,0.00015498,2]
[319297065,1710643848814,-500.0,0.00015498,2]
[319297066,1710643848823,-251.05499305,0.00015498,2]
[319297067,1710643848832,-500.0,0.00015498,2]
[319297068,1710643848841,-500.0,0.00015498,2]
[319297069,1710643848850,-500.0,0.00015498,2]
[319297070,1710643848859,-500.0,0.00015498,2]
[319297071,1710643848868,-460.91788727,0.00015498,2]
[319297072,1710643848877,-500.0,0.00015498,2]
[319297073,1710643848887,-500.0,0.00015498,2]
[319297074,1710643848896,-500.0,0.00015498,2]
[319297075,1710643848905,-500.0,0.00015498,2]
[319297076,1710643848914,-500.0,0.00015498,2]
[319297077,1710643848923,-500.0,0.00015498,2]
[319297078,1710643848932,-500.0,0.00015498,2]
[319297079,1710643848941,-500.0,0.00015498,2]
[319297080,1710643848950,-500.0,0.00015498,2]
[319297081,1710643848959,-500.0,0.00015498,2]
[319297082,1710643848970,-576.91,0.00015498,2]
[319297083,1710643848979,-500.0,0.00015498,2]
[319297084,1710643848989,-500.0,0.00015498,2]
[319297085,1710643848998,-500.0,0.00015498,2]
[319297086,1710643849008,-500.0,0.00015498,2]
[319297087,1710643849021,-500.0,0.00015498,2]
[319297088,1710643849030,-500.0,0.00015498,2]
[319297089,1710643849039,-500.0,0.00015498,2]
[319297090,1710643849049,-500.0,0.00015498,2]
[319297091,1710643849058,-427.27,0.00015498,2]
[319297092,1710643849067,-1175.92,0.00015498,2]
[319297093,1710643849077,-1175.92,0.00015498,2]
[319297094,1710643849086,-1175.92,0.00015498,2]
[319297095,1710643849096,-1175.92,0.00015498,2]
[319297096,1710643849106,-1175.92,0.00015498,2]
[319297097,1710643849115,-1175.92,0.00015498,2]
[319297098,1710643849125,-1175.92,0.00015498,2]
[319297099,1710643849134,-500.0,0.00015498,2]
[319297100,1710643849144,-500.0,0.00015498,2]
[319297101,1710643849153,-613.39,0.00015498,2]
[319297102,1710643849163,-500.0,0.00015498,2]
[319297103,1710643849172,-500.0,0.00015498,2]
[319297104,1710643849182,-204.91,0.00015498,2]
[319297105,1710643849191,-500.0,0.00015498,2]
[319297106,1710643849200,-500.0,0.00015498,2]
[319297107,1710643849209,-500.0,0.00015498,2]
[319297108,1710643849220,-500.0,0.00015498,2]
[319297109,1710643849229,-500.0,0.00015498,2]
[319297110,1710643849239,-500.0,0.00015498,2]
[319297111,1710643849248,-500.0,0.00015498,2]
[319297112,1710643849257,-500.0,0.00015498,2]
[319297113,1710643849266,-500.0,0.00015498,2]
[319297114,1710643849276,-500.0,0.00015498,2]
[319297115,1710643849285,-500.0,0.00015498,2]
[319297116,1710643849295,-500.0,0.00015498,2]
[319297117,1710643849304,-500.0,0.00015498,2]
[319297118,1710643849314,-500.0,0.00015498,2]
[319297119,1710643849323,-854.16,0.00015498,2]
[319297120,1710643849333,-854.16,0.00015498,2]
[319297121,1710643849343,-854.16,0.00015498,2]
[319297122,1710643849352,-854.16,0.00015498,2]
[319297123,1710643849362,-854.16,0.00015498,2]
[319297124,1710643849371,-854.16,0.00015498,2]
[319297125,1710643849381,-854.16,0.00015498,2]
[319297126,1710643849391,-854.16,0.00015498,2]